[Event "FIDE WYCC Open U14 2023"]
[Site "Montesilvano"]
[Date "2023.11.18"]
[Round "6.11"]
[White "Tregubenko, Nikolay"]
[Black "Dotzer, Lukas"]
[Result "*"]
[ECO "B40"]
[WhiteElo "2138"]
[BlackElo "2339"]
[Annotator "RC"]
[PlyCount "52"]
[EventDate "2023.11.13"]
[EventType "swiss"]
[EventCountry "ITA"]
[SourceTitle "playchess.com"]
[Source "ChessBase"]
[SourceQuality "1"]
[TimeControl "40/5400+30:1800+30"]

1. e4 {[%emt 0:00:03]} c5 {[%emt 0:00:04]} 2. Nf3 {[%emt 0:00:07]} e6 {[%emt 0:00:06]} 3. d4 {[%emt 0:00:07]} cxd4 {[%emt 0:00:05]} 4. Nxd4 {[%emt 0:00:04]} Nc6 {[%emt 0:00:09]} 5. Nc3 {[%emt 0:00:11]} Qc7 {[%emt 0:00:09]} 6. Be3 {[%emt 0:00:06]} a6 {[%emt 0:00:08]} 7. g4 {[%emt 0:00:29]} h6 {[%emt 0:03:41]} 8. Qd2 {[%emt 0:25:34]} b5 {[%emt 0:08:30]} 9. Nxc6 {[%emt 0:01:23]} Qxc6 {[%emt 0:02:43]} 10. O-O-O {[%emt 0:03:47]} Nf6 {[%emt 0:07:27]} 11. f3 {[%emt 0:08:02]} Bb7 {[%emt 0:07:54]} 12. h4 {[%emt 0:10:08]} b4 {[%emt 0:05:06]} 13. Ne2 {[%emt 0:00:25]} d5 {[%emt 0:02:26]} 14. e5 {[%emt 0:01:57]} Nd7 {[%emt 0:02:16]} 15. Bd4 {[%emt 0:12:24]} a5 {[%emt 0:09:32]} 16. Kb1 {[%emt 0:02:01]} a4 {[%emt 0:08:09]} 17. f4 {[%emt 0:03:23]} b3 {[%emt 0:09:20]} 18. cxb3 {[%emt 0:00:19]} axb3 {[%emt 0:01:57]} 19. a3 {[%emt 0:00:13]} Nb6 {[%emt 0:09:47]} 20. Bxb6 {[%emt 0:00:46]} Qxb6 {[%emt 0:00:32]} 21. Nd4 {[%emt 0:00:25]} Bc5 {[%emt 0:05:02]} 22. Rh3 {[%emt 0:01:31]} O-O {[%emt 0:02:42]} 23. Rxb3 {[%emt 0:00:33]} Qa7 {[%emt 0:01:11]} 24. f5 {[%emt 0:04:35]} Bc8 {[%emt 0:04:53]} 25. Qf4 {[%emt 0:06:04]} exf5 {[%emt 0:05:26]} 26. Nxf5 {[%emt 0:05:13]} Be6 {[%emt 0:01:11]} *

[Event "FIDE WYCC Open U14 2023"]
[Site "Montesilvano"]
[Date "2023.11.18"]
[Round "6.12"]
[White "Goh, Zi Han"]
[Black "Medhus, Vitus Bondo"]
[Result "1-0"]
[ECO "D19"]
[WhiteElo "2333"]
[BlackElo "2108"]
[Annotator "RC"]
[PlyCount "83"]
[EventDate "2023.11.13"]
[EventType "swiss"]
[EventCountry "ITA"]
[SourceTitle "playchess.com"]
[Source "ChessBase"]
[SourceQuality "1"]
[TimeControl "40/5400+30:1800+30"]

1. d4 {[%emt 0:01:14]} d5 {[%emt 0:00:07]} 2. c4 {[%emt 0:02:35]} c6 {[%emt 0:00:07]} 3. Nf3 {[%emt 0:00:32]} Nf6 {[%emt 0:00:15]} 4. Nc3 {[%emt 0:00:09]} dxc4 {[%emt 0:00:26]} 5. a4 {[%emt 0:00:55]} Bf5 {[%emt 0:00:16]} 6. e3 {[%emt 0:00:31]} e6 {[%emt 0:00:06]} 7. Bxc4 {[%emt 0:00:06]} Bb4 {[%emt 0:00:05]} 8. O-O {[%emt 0:00:32]} O-O {[%emt 0:00:07]} 9. Qe2 {[%emt 0:01:51]} Bg6 {[%emt 0:00:06]} 10. Ne5 {[%emt 0:03:05]} Nbd7 {[%emt 0:00:09]} 11. Nxg6 {[%emt 0:00:51]} hxg6 {[%emt 0:00:07]} 12. Rd1 {[%emt 0:02:16]} Qa5 {[%emt 0:00:06]} 13. Bd2 {[%emt 0:02:25]} Nd5 {[%emt 0:11:09]} 14. Ne4 {[%emt 0:07:09]} N7f6 {[%emt 0:06:05]} 15. Nc5 {[%emt 0:02:45]} Bxd2 {[%emt 0:05:11]} 16. Qxd2 {[%emt 0:02:09]} Qxd2 {[%emt 0:00:58]} 17. Rxd2 {[%emt 0:00:06]} b6 {[%emt 0:00:15]} 18. Nd3 {[%emt 0:01:36]} Rac8 {[%emt 0:12:07]} 19. Rc2 {[%emt 0:05:02]} Rfd8 {[%emt 0:09:13]} 20. Rac1 {[%emt 0:01:45]} Rd6 {[%emt 0:03:32]} 21. Bb5 {[%emt 0:07:46]} Ne7 {[%emt 0:03:30]} 22. Ne5 {[%emt 0:03:31]} Nfd5 {[%emt 0:00:50]} 23. Nxc6 {[%emt 0:04:06]} Nxc6 {[%emt 0:03:05]} 24. Rxc6 {[%emt 0:00:20]} Rdxc6 {[%emt 0:00:23]} 25. Rxc6 {[%emt 0:00:12]} Rd8 {[%emt 0:00:16]} 26. Kf1 {[%emt 0:04:10]} g5 {[%emt 0:00:39]} 27. h3 {[%emt 0:01:20]} Kf8 {[%emt 0:00:28]} 28. Ke2 {[%emt 0:01:06]} Ke7 {[%emt 0:01:41]} 29. Kf3 {[%emt 0:05:21]} Kf6 {[%emt 0:04:08]} 30. Rc1 {[%emt 0:02:10]} Kg6 {[%emt 0:02:18]} 31. Bd3+ {[%emt 0:02:44]} Kf6 {[%emt 0:01:55]} 32. Bb5 {[%emt 0:08:44]} Ke7 {[%emt 0:01:09]} 33. g3 {[%emt 0:10:18]} Ra8 {[%emt 0:04:27]} 34. e4 {[%emt 0:00:31]} Nb4 {[%emt 0:00:35]} 35. Rc7+ {[%emt 0:01:56]} Kf6 {[%emt 0:00:24]} 36. Ke3 {[%emt 0:02:35]} Kg6 {[%emt 0:02:01]} 37. Rc4 {[%emt 0:01:17]} Na2 {[%emt 0:00:59]} 38. d5 {[%emt 0:03:32]} exd5 {[%emt 0:02:10]} 39. exd5 {[%emt 0:00:11]} a6 {[%emt 0:00:52]} 40. Rc6+ {[%emt 0:00:00]} Kf5 {[%emt 0:00:00]} 41. Bd3+ {[%emt 0:03:31]} Ke5 {[%emt 0:01:20]} 42. Be4 {[%emt 0:00:28]} 1-0

[Event "FIDE WYCC Open U14 2023"]
[Site "Montesilvano"]
[Date "2023.11.18"]
[Round "6.13"]
[White "Bolat, Inayat"]
[Black "Lissillour, Baptiste"]
[Result "1-0"]
[ECO "B31"]
[WhiteElo "2088"]
[BlackElo "2298"]
[Annotator "RC"]
[PlyCount "109"]
[EventDate "2023.11.13"]
[EventType "swiss"]
[EventCountry "ITA"]
[SourceTitle "playchess.com"]
[Source "ChessBase"]
[SourceQuality "1"]
[TimeControl "40/5400+30:1800+30"]

1. e4 {[%emt 0:00:04]} c5 {[%emt 0:00:03]} 2. Nf3 {[%emt 0:00:14]} Nc6 {[%emt 0:00:05]} 3. Bb5 {[%emt 0:00:13]} g6 {[%emt 0:00:05]} 4. O-O {[%emt 0:00:17]} Bg7 {[%emt 0:00:02]} 5. c3 {[%emt 0:00:08]} Nf6 {[%emt 0:00:06]} 6. Qa4 {[%emt 0:00:07]} O-O {[%emt 0:00:25]} 7. d4 {[%emt 0:00:11]} cxd4 {[%emt 0:00:06]} 8. cxd4 {[%emt 0:00:03]} Nxe4 {[%emt 0:01:46]} 9. d5 {[%emt 0:00:18]} Nc5 {[%emt 0:00:05]} 10. Qa3 {[%emt 0:00:07]} Qb6 {[%emt 0:00:51]} 11. Nc3 {[%emt 0:00:44]} Nd4 {[%emt 0:00:07]} 12. Nxd4 {[%emt 0:02:58]} Bxd4 {[%emt 0:00:05]} 13. Bh6 {[%emt 0:00:06]} d6 {[%emt 0:00:03]} 14. Bxf8 {[%emt 0:11:30]} Kxf8 {[%emt 0:00:05]} 15. Rad1 {[%emt 0:02:09]} Be5 {[%emt 0:00:56]} 16. b4 {[%emt 0:01:52]} Na6 {[%emt 0:05:39]} 17. h3 {[%emt 0:07:07]} h5 {[%emt 0:21:51]} 18. Bxa6 {[%emt 0:13:13]} bxa6 {[%emt 0:01:34]} 19. Ne2 {[%emt 0:02:56]} Rb8 {[%emt 0:05:09]} 20. Rc1 {[%emt 0:04:38]} Qb5 {[%emt 0:06:25]} 21. Qe3 {[%emt 0:18:48]} Qxd5 {[%emt 0:01:54]} 22. Rfd1 {[%emt 0:02:10]} Qb7 {[%emt 0:03:27]} 23. Nf4 {[%emt 0:02:29]} Bd7 {[%emt 0:18:54]} 24. Nd5 {[%emt 0:04:52]} Bc6 {[%emt 0:01:28]} 25. f4 {[%emt 0:01:24]} Bb2 {[%emt 0:04:38]} 26. Rxc6 {[%emt 0:04:51]} Qxc6 {[%emt 0:00:06]} 27. Qxe7+ {[%emt 0:00:06]} Kg7 {[%emt 0:11:25]} 28. Qe2 {[%emt 0:03:01]} Bf6 {[%emt 0:08:33]} 29. Nxf6 {[%emt 0:00:31]} Kxf6 {[%emt 0:01:19]} 30. Qb2+ {[%emt 0:00:10]} Kf5 {[%emt 0:01:14]} 31. Kh1 {[%emt 0:04:36]} Re8 {[%emt 0:04:37]} 32. Qf2 {[%emt 0:00:37]} Qc4 {[%emt 0:01:28]} 33. Qxa7 {[%emt 0:05:38]} Re2 {[%emt 0:00:01]} 34. a3 {[%emt 0:01:34]} Qe6 {[%emt 0:02:18]} 35. Qxa6 {[%emt 0:02:45]} Qe4 {[%emt 0:00:30]} 36. Qc8+ {[%emt 0:01:27]} Kxf4 {[%emt 0:00:23]} 37. Rf1+ {[%emt 0:01:40]} Kg5 {[%emt 0:00:36]} 38. Qc1+ {[%emt 0:00:22]} Qe3 {[%emt 0:00:11]} 39. Qxe3+ {[%emt 0:00:30]} Rxe3 {[%emt 0:00:01]} 40. Rf3 {[%emt 0:00:00]} Re1+ {[%emt 0:00:00]} 41. Kh2 {[%emt 0:00:12]} f5 {[%emt 0:10:27]} 42. Rb3 {[%emt 0:01:19]} f4 {[%emt 0:00:43]} 43. b5 {[%emt 0:00:18]} Kh4 {[%emt 0:00:06]} 44. b6 {[%emt 0:03:20]} g5 {[%emt 0:00:05]} 45. b7 {[%emt 0:00:31]} g4 {[%emt 0:00:06]} 46. hxg4 {[%emt 0:00:07]} hxg4 {[%emt 0:00:06]} 47. Rh3+ {[%emt 0:00:48]} gxh3 {[%emt 0:01:06]} 48. b8=Q {[%emt 0:00:05]} hxg2 {[%emt 0:01:19]} 49. Kxg2 {[%emt 0:00:12]} Kg4 {[%emt 0:01:57]} 50. Qxd6 {[%emt 0:00:22]} Re2+ {[%emt 0:02:04]} 51. Kf1 {[%emt 0:00:04]} Re4 {[%emt 0:01:28]} 52. a4 {[%emt 0:00:29]} Kg3 {[%emt 0:01:39]} 53. Qg6+ {[%emt 0:00:18]} Kf3 {[%emt 0:00:07]} 54. Qc6 {[%emt 0:00:05]} Ke3 {[%emt 0:00:10]} 55. Qc3# {[%emt 0:00:04]} 1-0

[Event "FIDE WYCC Open U14 2023"]
[Site "Montesilvano"]
[Date "2023.11.18"]
[Round "6.14"]
[White "Cieslak, Patryk"]
[Black "Vommaro, Stanislao"]
[Result "1-0"]
[ECO "B90"]
[WhiteElo "2284"]
[BlackElo "2083"]
[Annotator "RC"]
[PlyCount "49"]
[EventDate "2023.11.13"]
[EventType "swiss"]
[EventCountry "ITA"]
[SourceTitle "playchess.com"]
[Source "ChessBase"]
[SourceQuality "1"]
[TimeControl "40/5400+30:1800+30"]

1. e4 {[%emt 0:00:03]} c5 {[%emt 0:02:18]} 2. Nf3 {[%emt 0:00:03]} d6 {[%emt 0:00:52]} 3. d4 {[%emt 0:00:02]} cxd4 {[%emt 0:00:29]} 4. Nxd4 {[%emt 0:00:04]} Nf6 {[%emt 0:00:38]} 5. Nc3 {[%emt 0:00:02]} a6 {[%emt 0:00:41]} 6. h3 {[%emt 0:00:23]} e6 {[%emt 0:00:54]} 7. g4 {[%emt 0:00:57]} h6 {[%emt 0:00:44]} 8. Bg2 {[%emt 0:01:07]} g5 {[%emt 0:01:51]} 9. Qe2 {[%emt 0:01:50]} Nbd7 {[%emt 0:02:07]} 10. Be3 {[%emt 0:00:27]} Ne5 {[%emt 0:01:13]} 11. O-O-O {[%emt 0:00:28]} Nfd7 {[%emt 0:04:04]} 12. h4 {[%emt 0:02:42]} Rg8 {[%emt 0:00:48]} 13. Nf5 {[%emt 0:02:14]} exf5 {[%emt 0:05:44]} 14. exf5 {[%emt 0:01:04]} Nf6 {[%emt 0:08:57]} 15. f4 {[%emt 0:02:40]} gxf4 {[%emt 0:00:58]} 16. Bxf4 {[%emt 0:00:11]} Nfxg4 {[%emt 0:46:46]} 17. Bh3 {[%emt 0:00:26]} Qxh4 {[%emt 0:00:58]} 18. Nd5 {[%emt 0:09:14]} Bxf5 {[%emt 0:06:20]} 19. Bxg4 {[%emt 0:07:30]} Bxg4 {[%emt 0:00:51]} 20. Qe3 {[%emt 0:00:36]} Qxh1 {[%emt 0:08:49]} 21. Rxh1 {[%emt 0:01:00]} Bf3 {[%emt 0:02:10]} 22. Nf6+ {[%emt 0:04:11]} Kd8 {[%emt 0:00:27]} 23. Re1 {[%emt 0:02:33]} Rg2 {[%emt 0:02:36]} 24. Bxe5 {[%emt 0:00:50]} Rc8 {[%emt 0:00:29]} 25. Bc3 {[%emt 0:00:17]} 1-0

[Event "FIDE WYCC Open U14 2023"]
[Site "Montesilvano"]
[Date "2023.11.18"]
[Round "6.15"]
[White "Averin, Nikolay"]
[Black "Bharadia Yash"]
[Result "*"]
[ECO "B90"]
[WhiteElo "2270"]
[BlackElo "2071"]
[Annotator "RC"]
[PlyCount "53"]
[EventDate "2023.11.13"]
[EventType "swiss"]
[EventCountry "ITA"]
[SourceTitle "playchess.com"]
[Source "ChessBase"]
[SourceQuality "1"]
[TimeControl "40/5400+30:1800+30"]

1. e4 {[%emt 0:04:26]} c5 {[%emt 0:00:04]} 2. Nf3 {[%emt 0:00:04]} d6 {[%emt 0:00:07]} 3. d4 {[%emt 0:00:05]} cxd4 {[%emt 0:00:06]} 4. Nxd4 {[%emt 0:00:03]} Nf6 {[%emt 0:00:09]} 5. Nc3 {[%emt 0:00:06]} a6 {[%emt 0:00:04]} 6. f3 {[%emt 0:00:08]} e6 {[%emt 0:00:04]} 7. g4 {[%emt 0:02:15]} b5 {[%emt 0:00:03]} 8. g5 {[%emt 0:00:20]} Nfd7 {[%emt 0:00:06]} 9. h4 {[%emt 0:17:46]} Bb7 {[%emt 0:02:42]} 10. Bh3 {[%emt 0:08:45]} Nb6 {[%emt 0:05:31]} 11. Qe2 {[%emt 0:14:00]} N8d7 {[%emt 0:02:06]} 12. h5 {[%emt 0:07:29]} b4 {[%emt 0:10:56]} 13. Nd1 {[%emt 0:00:20]} e5 {[%emt 0:02:34]} 14. Nf5 {[%emt 0:02:00]} g6 {[%emt 0:00:48]} 15. Nh6 {[%emt 0:00:51]} Be7 {[%emt 0:08:41]} 16. Rg1 {[%emt 0:01:22]} Nc5 {[%emt 0:05:33]} 17. Nf2 {[%emt 0:12:01]} Bc8 {[%emt 0:17:00]} 18. f4 {[%emt 0:05:30]} Bxh3 {[%emt 0:12:17]} 19. Nxh3 {[%emt 0:00:03]} Ne6 {[%emt 0:00:58]} 20. Qf2 {[%emt 0:02:21]} Qc7 {[%emt 0:13:50]} 21. fxe5 {[%emt 0:05:53]} O-O-O {[%emt 0:00:51]} 22. Nxf7 {[%emt 0:12:42]} Rhf8 {[%emt 0:00:55]} 23. hxg6 {[%emt 0:02:38]} hxg6 {[%emt 0:00:20]} 24. Nxd8 {[%emt 0:00:15]} Rxf2 {[%emt 0:00:23]} 25. Nxe6 {[%emt 0:00:07]} Re2+ {[%emt 0:01:36]} 26. Kxe2 {[%emt 0:00:04]} Qc4+ {[%emt 0:00:04]} 27. Kf3 {[%emt 0:01:17]} *

[Event "FIDE WYCC Open U14 2023"]
[Site "Montesilvano"]
[Date "2023.11.18"]
[Round "6.16"]
[White "Nurgaliyev, Sauat"]
[Black "Fan, Jingyi"]
[Result "1/2-1/2"]
[ECO "B30"]
[WhiteElo "2235"]
[BlackElo "2035"]
[Annotator "RC"]
[PlyCount "139"]
[EventDate "2023.11.13"]
[EventType "swiss"]
[EventCountry "ITA"]
[SourceTitle "playchess.com"]
[Source "ChessBase"]
[SourceQuality "1"]
[TimeControl "40/5400+30:1800+30"]

1. e4 {[%emt 0:00:03]} c5 {[%emt 0:00:06]} 2. Nf3 {[%emt 0:00:05]} Nc6 {[%emt 0:00:05]} 3. Bb5 {[%emt 0:00:07]} e6 {[%emt 0:00:06]} 4. Bxc6 {[%emt 0:00:23]} bxc6 {[%emt 0:00:04]} 5. b3 {[%emt 0:00:04]} Ne7 {[%emt 0:01:11]} 6. Bb2 {[%emt 0:00:22]} Ng6 {[%emt 0:00:59]} 7. h4 {[%emt 0:00:57]} h5 {[%emt 0:00:13]} 8. e5 {[%emt 0:00:09]} c4 {[%emt 0:10:02]} 9. bxc4 {[%emt 0:02:43]} Rb8 {[%emt 0:00:39]} 10. Bc3 {[%emt 0:01:28]} c5 {[%emt 0:00:13]} 11. d3 {[%emt 0:01:59]} Bb7 {[%emt 0:03:56]} 12. Nbd2 {[%emt 0:07:56]} Be7 {[%emt 0:07:44]} 13. Ne4 {[%emt 0:08:10]} f5 {[%emt 0:11:08]} 14. exf6 {[%emt 0:18:09]} gxf6 {[%emt 0:00:19]} 15. Rb1 {[%emt 0:08:42]} Kf7 {[%emt 0:13:11]} 16. Ng3 {[%emt 0:10:30]} Nf4 {[%emt 0:13:21]} 17. O-O {[%emt 0:04:34]} Qc7 {[%emt 0:03:36]} 18. Bd2 {[%emt 0:05:52]} Rhg8 {[%emt 0:01:06]} 19. Bxf4 {[%emt 0:05:34]} Qxf4 {[%emt 0:00:17]} 20. Rb3 {[%emt 0:03:25]} Rg4 {[%emt 0:11:40]} 21. Qd2 {[%emt 0:01:40]} Bd8 {[%emt 0:12:01]} 22. Qxf4 {[%emt 0:06:11]} Rxf4 {[%emt 0:00:07]} 23. Ne4 {[%emt 0:05:10]} Bb6 {[%emt 0:03:35]} 24. Nd6+ {[%emt 0:00:41]} Ke7 {[%emt 0:00:41]} 25. Nxb7 {[%emt 0:00:08]} Rxb7 {[%emt 0:00:04]} 26. a4 {[%emt 0:00:40]} Rc7 {[%emt 0:01:36]} 27. Ra1 {[%emt 0:01:40]} Rc6 {[%emt 0:00:33]} 28. Kf1 {[%emt 0:02:44]} d5 {[%emt 0:02:12]} 29. a5 {[%emt 0:00:22]} Bc7 {[%emt 0:00:22]} 30. Rb7 {[%emt 0:03:44]} a6 {[%emt 0:00:07]} 31. cxd5 {[%emt 0:00:52]} exd5 {[%emt 0:00:03]} 32. c3 {[%emt 0:00:38]} Kd7 {[%emt 0:00:33]} 33. Ra7 {[%emt 0:00:36]} c4 {[%emt 0:03:13]} 34. Nd4 {[%emt 0:00:26]} Rxh4 {[%emt 0:00:34]} 35. Ke2 {[%emt 0:00:37]} Rxd4 {[%emt 0:01:30]} 36. cxd4 {[%emt 0:00:06]} c3 {[%emt 0:00:09]} 37. Rb7 {[%emt 0:00:58]} Kc8 {[%emt 0:00:17]} 38. Rxc7+ {[%emt 0:00:27]} Kxc7 {[%emt 0:00:54]} 39. Rh1 {[%emt 0:00:14]} c2 {[%emt 0:00:35]} 40. Rc1 {[%emt 0:00:00]} h4 {[%emt 0:00:00]} 41. Ke3 {[%emt 0:07:09]} Kd6 {[%emt 0:02:56]} 42. Kd2 {[%emt 0:03:55]} f5 {[%emt 0:11:51]} 43. Ke3 {[%emt 0:02:17]} Rc7 {[%emt 0:03:18]} 44. Kf4 {[%emt 0:01:38]} Rc3 {[%emt 0:08:29]} 45. Ke3 {[%emt 0:05:36]} Ke6 {[%emt 0:02:02]} 46. Kd2 {[%emt 0:00:06]} Rc7 {[%emt 0:01:28]} 47. Re1+ {[%emt 0:02:03]} Kd6 {[%emt 0:02:38]} 48. Kc1 {[%emt 0:00:49]} Rg7 {[%emt 0:00:38]} 49. g3 {[%emt 0:03:46]} h3 {[%emt 0:01:39]} 50. Rh1 {[%emt 0:02:34]} Rh7 {[%emt 0:00:15]} 51. Kxc2 {[%emt 0:00:39]} Kc6 {[%emt 0:00:45]} 52. f3 {[%emt 0:00:49]} Kb5 {[%emt 0:00:28]} 53. g4 {[%emt 0:00:51]} fxg4 {[%emt 0:00:44]} 54. fxg4 {[%emt 0:00:01]} Rh4 {[%emt 0:00:38]} 55. Kc3 {[%emt 0:00:48]} Kxa5 {[%emt 0:00:26]} 56. g5 {[%emt 0:00:23]} Rg4 {[%emt 0:00:17]} 57. Rxh3 {[%emt 0:00:11]} Rxg5 {[%emt 0:00:05]} 58. Re3 {[%emt 0:00:34]} Rg6 {[%emt 0:00:43]} 59. Re5 {[%emt 0:01:03]} Rd6 {[%emt 0:00:18]} 60. Kb3 {[%emt 0:00:11]} Kb5 {[%emt 0:00:48]} 61. Rh5 {[%emt 0:01:08]} a5 {[%emt 0:00:33]} 62. Ka3 {[%emt 0:00:15]} Kc6 {[%emt 0:00:43]} 63. Ka4 {[%emt 0:00:09]} Rg6 {[%emt 0:00:11]} 64. Kxa5 {[%emt 0:00:17]} Rg4 {[%emt 0:00:13]} 65. Rh6+ {[%emt 0:00:23]} Kd7 {[%emt 0:00:08]} 66. Kb4 {[%emt 0:00:15]} Rxd4+ {[%emt 0:00:08]} 67. Kc5 {[%emt 0:00:09]} Rxd3 {[%emt 0:00:06]} 68. Rd6+ {[%emt 0:00:03]} Kc7 {[%emt 0:00:08]} 69. Rxd5 {[%emt 0:00:06]} Rxd5+ {[%emt 0:00:04]} 70. Kxd5 {[%emt 0:00:04]} 1/2-1/2

[Event "FIDE WYCC Open U14 2023"]
[Site "Montesilvano"]
[Date "2023.11.18"]
[Round "6.17"]
[White "Vingris, Mikelis"]
[Black "Haug, Havard"]
[Result "*"]
[ECO "B12"]
[WhiteElo "2127"]
[BlackElo "2223"]
[Annotator "RC"]
[PlyCount "80"]
[EventDate "2023.11.13"]
[EventType "swiss"]
[EventCountry "ITA"]
[SourceTitle "playchess.com"]
[Source "ChessBase"]
[SourceQuality "1"]
[TimeControl "40/5400+30:1800+30"]

1. e4 {[%emt 0:02:29]} c6 {[%emt 0:00:04]} 2. d4 {[%emt 0:00:03]} d5 {[%emt 0:00:03]} 3. e5 {[%emt 0:00:06]} c5 {[%emt 0:00:23]} 4. Nf3 {[%emt 0:00:05]} Bg4 {[%emt 0:00:37]} 5. c4 {[%emt 0:00:11]} cxd4 {[%emt 0:00:15]} 6. cxd5 {[%emt 0:00:53]} Qxd5 {[%emt 0:00:18]} 7. Nc3 {[%emt 0:00:20]} Qa5 {[%emt 0:00:19]} 8. Bb5+ {[%emt 0:00:26]} Nc6 {[%emt 0:00:19]} 9. Bxc6+ {[%emt 0:00:29]} bxc6 {[%emt 0:00:02]} 10. Qxd4 {[%emt 0:00:21]} Bxf3 {[%emt 0:00:05]} 11. gxf3 {[%emt 0:00:06]} e6 {[%emt 0:00:12]} 12. Be3 {[%emt 0:01:35]} Ne7 {[%emt 0:05:39]} 13. O-O-O {[%emt 0:00:50]} Nd5 {[%emt 0:11:03]} 14. Qc4 {[%emt 0:00:20]} Rc8 {[%emt 0:02:36]} 15. Kb1 {[%emt 0:33:28]} Nxe3 {[%emt 0:11:36]} 16. fxe3 {[%emt 0:00:05]} Qxe5 {[%emt 0:00:16]} 17. f4 {[%emt 0:15:41]} Qc7 {[%emt 0:06:23]} 18. Rhg1 {[%emt 0:11:00]} g6 {[%emt 0:07:47]} 19. Qd4 {[%emt 0:07:52]} e5 {[%emt 0:02:46]} 20. fxe5 {[%emt 0:01:53]} Bg7 {[%emt 0:03:01]} 21. Ne4 {[%emt 0:01:38]} Bxe5 {[%emt 0:03:28]} 22. Nd6+ {[%emt 0:01:15]} Qxd6 {[%emt 0:00:11]} 23. Qxd6 {[%emt 0:00:49]} Bxd6 {[%emt 0:00:31]} 24. Rxd6 {[%emt 0:00:05]} Ke7 {[%emt 0:00:57]} 25. Rd4 {[%emt 0:07:07]} Rhd8 {[%emt 0:00:24]} 26. Re4+ {[%emt 0:01:49]} Kf8 {[%emt 0:00:15]} 27. Kc2 {[%emt 0:00:32]} Rd5 {[%emt 0:01:18]} 28. Rc4 {[%emt 0:02:26]} f5 {[%emt 0:02:50]} 29. Rd1 {[%emt 0:04:39]} Rxd1 {[%emt 0:00:48]} 30. Kxd1 {[%emt 0:00:01]} Ke7 {[%emt 0:00:18]} 31. Ke2 {[%emt 0:01:17]} Ke6 {[%emt 0:00:46]} 32. b3 {[%emt 0:02:09]} g5 {[%emt 0:02:00]} 33. Rd4 {[%emt 0:01:57]} h5 {[%emt 0:00:49]} 34. Kf3 {[%emt 0:01:01]} Rc7 {[%emt 0:01:52]} 35. Rd8 {[%emt 0:00:45]} Rd7 {[%emt 0:00:45]} 36. Rg8 {[%emt 0:01:48]} g4+ {[%emt 0:01:28]} 37. Kf4 {[%emt 0:00:15]} Rd2 {[%emt 0:00:04]} 38. Rg6+ {[%emt 0:00:29]} Kf7 {[%emt 0:00:26]} 39. Rxc6 {[%emt 0:00:59]} Rxh2 {[%emt 0:00:06]} 40. Kxf5 {[%emt 0:00:00]} g3 {[%emt 0:00:00]} *

[Event "FIDE WYCC Open U14 2023"]
[Site "Montesilvano"]
[Date "2023.11.18"]
[Round "6.18"]
[White "Daaevik Wadhawan"]
[Black "Dhruva Thota"]
[Result "*"]
[WhiteElo "1810"]
[BlackElo "2192"]
[Annotator "ChessBase"]
[PlyCount "58"]
[EventDate "2023.11.13"]
[EventType "swiss"]
[EventCountry "ITA"]
[SourceTitle "playchess.com"]
[Source "ChessBase"]
[SourceQuality "1"]
[TimeControl "40/5400+30:1800+30"]

1. d4 {[%emt 0:00:36]} Nf6 {[%emt 0:01:01]} 2. c4 {[%emt 0:00:03]} g6 {[%emt 0:00:42]} 3. Nc3 {[%emt 0:00:02]} Bg7 {[%emt 0:00:20]} 4. e4 {[%emt 0:00:03]} d6 {[%emt 0:00:55]} 5. Be2 {[%emt 0:00:03]} O-O {[%emt 0:01:28]} 6. h4 {[%emt 0:00:02]} c5 {[%emt 0:05:20]} 7. d5 {[%emt 0:00:09]} e6 {[%emt 0:00:38]} 8. h5 {[%emt 0:00:09]} exd5 {[%emt 0:00:03]} 9. exd5 {[%emt 0:00:02]} Re8 {[%emt 0:01:25]} 10. h6 {[%emt 0:00:14]} Bh8 {[%emt 0:00:22]} 11. Bg5 {[%emt 0:00:02]} Qb6 {[%emt 0:02:31]} 12. b3 {[%emt 0:00:03]} Bf5 {[%emt 0:00:55]} 13. Kf1 {[%emt 0:00:35]} Na6 {[%emt 0:00:08]} 14. a3 {[%emt 0:13:31]} Ne4 {[%emt 0:03:04]} 15. Nxe4 {[%emt 0:00:26]} Bxe4 {[%emt 0:00:11]} 16. Ra2 {[%emt 0:09:15]} Qa5 {[%emt 0:09:29]} 17. Nf3 {[%emt 0:16:52]} Bxf3 {[%emt 0:05:42]} 18. gxf3 {[%emt 0:08:26]} Nc7 {[%emt 0:09:19]} 19. Bd2 {[%emt 0:05:42]} Qa6 {[%emt 0:00:26]} 20. Bc1 {[%emt 0:01:56]} b5 {[%emt 0:03:37]} 21. Rh4 {[%emt 0:06:09]} bxc4 {[%emt 0:04:50]} 22. Bxc4 {[%emt 0:01:01]} Qb7 {[%emt 0:01:58]} 23. Qd3 {[%emt 0:03:01]} f5 {[%emt 0:09:19]} 24. Kg2 {[%emt 0:06:03]} Bf6 {[%emt 0:13:06]} 25. Rh1 {[%emt 0:00:48]} Rab8 {[%emt 0:01:56]} 26. a4 {[%emt 0:03:04]} Qc8 {[%emt 0:05:01]} 27. Be3 {[%emt 0:06:34]} Qd8 {[%emt 0:01:51]} 28. Re2 {[%emt 0:02:04]} Kf8 {[%emt 0:08:59]} 29. Rhe1 {[%emt 0:01:55]} Qd7 {[%emt 0:05:10]} *

[Event "FIDE WYCC Open U14 2023"]
[Site "Montesilvano"]
[Date "2023.11.18"]
[Round "6.19"]
[White "Myagmarsuren, Evsuld"]
[Black "Kazantzoglou, Stefanos"]
[Result "*"]
[ECO "C55"]
[WhiteElo "2150"]
[BlackElo "2031"]
[Annotator "ChessBase"]
[PlyCount "79"]
[EventDate "2023.11.13"]
[EventType "swiss"]
[EventCountry "ITA"]
[SourceTitle "playchess.com"]
[Source "ChessBase"]
[SourceQuality "1"]
[TimeControl "40/5400+30:1800+30"]

1. e4 {[%emt 0:00:03]} e5 {[%emt 0:00:01]} 2. Nf3 {[%emt 0:00:09]} Nc6 {[%emt 0:00:05]} 3. Bc4 {[%emt 0:00:05]} Nf6 {[%emt 0:00:05]} 4. d3 {[%emt 0:00:05]} Be7 {[%emt 0:00:02]} 5. O-O {[%emt 0:00:07]} O-O {[%emt 0:00:03]} 6. Re1 {[%emt 0:00:10]} d6 {[%emt 0:00:01]} 7. a4 {[%emt 0:00:07]} Kh8 {[%emt 0:00:08]} 8. a5 {[%emt 0:00:03]} a6 {[%emt 0:00:25]} 9. h3 {[%emt 0:00:07]} Ng8 {[%emt 0:02:02]} 10. Nc3 {[%emt 0:00:04]} f5 {[%emt 0:01:56]} 11. Nd5 {[%emt 0:00:04]} fxe4 {[%emt 0:06:24]} 12. dxe4 {[%emt 0:00:07]} Nf6 {[%emt 0:04:09]} 13. b4 {[%emt 0:03:49]} Nxd5 {[%emt 0:19:40]} 14. exd5 {[%emt 0:00:06]} Nd4 {[%emt 0:01:37]} 15. Nxd4 {[%emt 0:02:31]} exd4 {[%emt 0:00:02]} 16. Bb2 {[%emt 0:01:55]} Bh4 {[%emt 0:12:48]} 17. Bxd4 {[%emt 0:00:54]} Qg5 {[%emt 0:02:03]} 18. Ra3 {[%emt 0:06:29]} Bf5 {[%emt 0:06:03]} 19. Rf3 {[%emt 0:08:27]} Rae8 {[%emt 0:09:02]} 20. Bd3 {[%emt 0:04:17]} Bxd3 {[%emt 0:04:16]} 21. Rxe8 {[%emt 0:03:06]} Rxe8 {[%emt 0:00:10]} 22. Qxd3 {[%emt 0:00:40]} Kg8 {[%emt 0:02:15]} 23. Be3 {[%emt 0:03:57]} Qe5 {[%emt 0:02:00]} 24. Qc4 {[%emt 0:05:37]} Bf6 {[%emt 0:01:58]} 25. Qxc7 {[%emt 0:07:50]} Qxd5 {[%emt 0:01:22]} 26. Bf4 {[%emt 0:04:48]} Qc6 {[%emt 0:05:17]} 27. Qxc6 {[%emt 0:02:39]} bxc6 {[%emt 0:00:21]} 28. Re3 {[%emt 0:04:07]} Rxe3 {[%emt 0:00:47]} 29. fxe3 {[%emt 0:00:05]} d5 {[%emt 0:00:08]} 30. Bd6 {[%emt 0:00:42]} Kf7 {[%emt 0:01:39]} 31. Kf2 {[%emt 0:00:17]} Ke6 {[%emt 0:00:15]} 32. Bc5 {[%emt 0:00:26]} Kf5 {[%emt 0:01:11]} 33. Kf3 {[%emt 0:00:25]} g6 {[%emt 0:00:40]} 34. g4+ {[%emt 0:04:28]} Ke6 {[%emt 0:05:37]} 35. Ke2 {[%emt 0:03:41]} h5 {[%emt 0:03:13]} 36. e4 {[%emt 0:03:13]} hxg4 {[%emt 0:02:42]} 37. hxg4 {[%emt 0:00:12]} Bd8 {[%emt 0:05:00]} 38. exd5+ {[%emt 0:03:51]} Kxd5 {[%emt 0:00:14]} 39. Kd3 {[%emt 0:00:07]} Ke6 {[%emt 0:02:03]} 40. c4 {[%emt 0:00:00]} *